bitfinex/quotes_SOLUSD_20250818
["timestamp","ask_amount","ask_price","bid_price","bid_amount"]
[1755508714474,4.39377153,180.53,180.49,5.54020773]
[1755508714651,0.72,180.53,180.49,5.54020773]
[1755508715179,8.12449811,180.54,180.49,13.79998237]
[1755508715352,3.67409621,180.53,180.49,13.79998237]
[1755508715553,8.84449811,180.54,180.49,13.79998237]
[1755508715852,3.67421367,180.53,180.5,13.79986381]
[1755508716058,0.03,180.54,180.52,7.53977464]
[1755508716584,0.03,180.54,180.51,0.72]
[1755508716956,0.03,180.54,180.52,8.25977464]
[1755508717355,0.03,180.54,180.53,0.72]
[1755508718170,0.03,180.54,180.53,13.79902019]
[1755508718888,0.03,180.54,180.53,146.79902019]
[1755508719068,0.03,180.54,180.53,139.25924555]
[1755508719476,0.03,180.54,180.53,146.79902019]
[1755508720168,0.03,180.54,180.53,13.79902019]
[1755508720874,0.03,180.54,180.53,5.53924555]
[1755508721192,0.03,180.54,180.52,138.53945411]
[1755508722771,0.03,180.54,180.53,7.53977464]
[1755508722995,0.03,180.54,180.53,8.25977464]
[1755508723387,0.03,180.54,180.53,7.53977464]
[1755508723571,0.03,180.54,180.52,138.53945411]
[1755508723768,0.03,180.54,180.53,7.53977464]
[1755508723985,0.03,180.54,180.53,8.25977464]
[1755508724290,0.03,180.54,180.52,138.53945411]
[1755508725677,0.03,180.54,180.52,146.07922875]
[1755508726167,0.03,180.54,180.51,45.93979252]
[1755508726382,0.71,180.53,180.49,5.5404009]
[1755508726563,0.71,180.52,180.48,173.48]
[1755508726971,7.53977464,180.53,180.48,133.06]
[1755508727170,7.53977464,180.53,180.51,0.06]
[1755508727171,3.67781582,180.52,180.51,0.06]
[1755508727372,11.92759046,180.52,180.51,0.06]
[1755508727683,3.67781582,180.52,180.51,0.06]
[1755508728816,3.67781582,180.52,180.51,8.26977464]
[1755508728989,0.03,180.54,180.51,8.26977464]
[1755508729495,3.67810161,180.53,180.51,8.26977464]
[1755508729700,0.03,180.54,180.52,5.5395524]
[1755508729879,3.67818006,180.53,180.52,5.5395524]
[1755508730082,3.67818006,180.53,180.52,13.74932704]
[1755508730588,0.03,180.54,180.52,13.74932704]
[1755508730899,0.03,180.54,180.53,8.20977464]
[1755508731108,0.03,180.54,180.53,0.67]
[1755508731280,3.70920166,180.54,180.53,0.67]
[1755508732279,3.70920166,180.54,180.53,5.53924555]
[1755508732702,0.03,180.54,180.53,5.53924555]
[1755508733220,0.03,180.54,180.52,7.53977464]
[1755508733221,3.71166088,180.54,180.51,178.95978548]
[1755508733376,3.68166088,180.53,180.51,173.42]
[1755508733707,0.71,180.53,180.51,133.06]
[1755508734006,0.03,180.54,180.51,138.59975744]
[1755508734179,3.68172955,180.53,180.51,138.59975744]
[1755508734378,0.03,180.54,180.51,138.59975744]
[1755508734609,3.68333483,180.53,180.51,138.59975744]
[1755508734810,0.03,180.54,180.51,5.59975744]
[1755508735010,3.68333483,180.53,180.51,5.59975744]
[1755508735195,3.68564819,180.52,180.51,5.59975744]
[1755508736216,3.68564819,180.52,180.51,0.06]
[1755508736582,4.39564819,180.52,180.51,0.06]
[1755508736808,3.68564819,180.52,180.51,0.06]
[1755508739792,4.39564819,180.52,180.51,0.06]
[1755508740402,12.4901463,180.52,180.51,0.06]
[1755508740606,17.09029499,180.52,180.51,0.06]
[1755508741401,12.4901463,180.52,180.51,0.06]
[1755508741915,17.09029499,180.52,180.51,0.06]
[1755508742094,12.4901463,180.52,180.51,0.06]
[1755508742510,4.95037166,180.52,180.51,0.06]
[1755508742917,3.68564819,180.52,180.51,0.06]
[1755508744228,3.68564819,180.52,180.51,0.73]
[1755508744382,3.68564819,180.52,180.51,0.06]
[1755508752232,12.4901463,180.52,180.51,0.06]
[1755508752607,4.95037166,180.52,180.51,0.06]
[1755508753127,4.24037166,180.52,180.51,0.06]
[1755508753735,3.68564819,180.52,180.51,0.73]
[1755508753902,3.68564819,180.52,180.51,8.26977464]
[1755508754841,3.68564819,180.52,180.51,0.06]
[1755508755015,4.39564819,180.52,180.51,0.06]
[1755508755210,12.4901463,180.52,180.51,0.06]
[1755508756811,4.95037166,180.52,180.51,0.06]
[1755508758411,12.4901463,180.52,180.51,0.06]
[1755508758853,4.24037166,180.52,180.51,0.06]
[1755508759336,4.94037166,180.52,180.51,0.06]
[1755508763746,4.38564819,180.52,180.51,0.06]
[1755508764831,11.92542283,180.52,180.51,0.06]
[1755508765639,3.68564819,180.52,180.51,0.06]
[1755508765817,4.24037166,180.52,180.51,0.06]
[1755508767929,3.68564819,180.52,180.51,0.06]
[1755508770149,4.38564819,180.52,180.51,0.06]
[1755508771256,3.68564819,180.52,180.51,0.06]
[1755508773446,11.92542283,180.52,180.51,0.06]
[1755508775059,51.82542283,180.52,180.51,0.06]
[1755508776765,66.06715338,180.52,180.51,0.06]
[1755508777261,8.48767765,180.52,180.49,0.06]
[1755508777428,12.40294323,180.51,180.5,26.72]
[1755508777629,3.68564819,180.51,180.5,34.25977464]
[1755508777861,0.03,180.54,180.5,34.25977464]
[1755508778030,0.03,180.54,180.53,7.53977464]
[1755508778231,3.72342975,180.54,180.52,5.5395524]
[1755508778462,3.69342975,180.53,180.52,5.5395524]
[1755508778679,3.69342975,180.53,180.51,0.06]
[1755508778905,12.48792786,180.52,180.51,0.06]
[1755508779171,16.59113796,180.52,180.51,0.06]
[1755508779474,21.20640354,180.52,180.51,0.06]
[1755508779650,4.24815322,180.52,180.51,5.59985928]
[1755508779830,3.69342975,180.52,180.51,6.31985928]
[1755508780032,3.69342975,180.52,180.51,0.06]
[1755508780268,16.54846997,180.52,180.51,0.06]
[1755508780568,21.20697507,180.52,180.51,0.06]
[1755508780869,26.74652747,180.52,180.51,0.06]
[1755508781072,21.20697507,180.52,180.51,0.06]
[1755508781277,22.13126189,180.52,180.51,0.06]
[1755508781977,26.0,180.5,180.49,0.06]
[1755508782276,81.85170949,180.5,180.49,0.06]
[1755508782438,87.16626305,180.5,180.49,0.06]
[1755508782836,82.55170949,180.5,180.49,0.06]
[1755508784545,52.92204152,180.5,180.49,0.06]
[1755508784748,48.35193485,180.5,180.49,0.06]
[1755508784938,55.89170949,180.5,180.49,0.06]
[1755508785449,55.89170949,180.5,180.49,0.78]
[1755508785450,43.69342975,180.5,180.49,0.78]
[1755508785665,43.69342975,180.5,180.49,0.06]
[1755508786037,51.23320439,180.5,180.49,0.06]
[1755508786345,55.33106331,180.5,180.49,0.06]
[1755508786553,56.01106331,180.5,180.49,0.06]
[1755508786968,56.01029324,180.5,180.49,0.06]
[1755508787167,51.23320439,180.5,180.49,0.06]
[1755508787961,43.69342975,180.5,180.49,0.06]
[1755508788160,51.23320439,180.5,180.49,0.06]
[1755508788344,43.69342975,180.5,180.49,0.06]
[1755508788651,3.69342975,180.5,180.49,8.26977464]
[1755508788858,0.03,180.54,180.49,8.26977464]
[1755508789068,3.68613044,180.53,180.5,0.67]
[1755508789371,0.03,180.54,180.52,7.53977464]
[1755508789542,0.03,180.54,180.51,26.0]
[1755508789740,3.68586501,180.53,180.5,0.67]
[1755508789939,3.68586501,180.52,180.5,0.67]
[1755508790168,3.68586501,180.51,180.5,0.67]
[1755508790543,3.68586501,180.51,180.49,0.06]
[1755508790748,3.68586501,180.5,180.49,0.06]
[1755508790946,3.68586501,180.5,180.49,8.26977464]
[1755508791152,40.14,180.53,180.49,8.26977464]
[1755508791351,3.68442362,180.52,180.5,7.53977464]
[1755508791564,0.58472347,180.54,180.51,7.53977464]
[1755508791565,0.03,180.54,180.51,7.53977464]
[1755508791747,3.68478969,180.53,180.49,133.06]
[1755508792069,0.03,180.54,180.5,0.67]
[1755508792372,3.68498514,180.53,180.5,0.67]
[1755508792553,0.03,180.54,180.51,5.53985928]
[1755508792760,40.76472347,180.57,180.54,26.0]
[1755508792761,0.03,180.57,180.54,26.0]
[1755508792956,15.9772382,180.58,180.55,26.67]
[1755508793268,1e-08,180.58,180.56,15.77621557]
[1755508793568,0.03,180.59,180.57,8.20977464]
[1755508793770,0.06,180.62,180.58,7.53977464]
[1755508793973,0.06,180.62,180.6,7.53977464]
[1755508794345,0.06,180.62,180.6,8.20977464]
[1755508794863,0.06,180.62,180.6,13.7468732]
[1755508795257,0.06,180.62,180.6,6.20709856]
[1755508795653,0.06,180.62,180.6,13.7468732]
[1755508796443,0.06,180.62,180.6,6.20709856]
[1755508796968,0.06,180.62,180.6,13.7468732]
[1755508797554,0.06,180.62,180.6,6.20709856]
[1755508798261,0.06,180.62,180.58,7.53977464]
[1755508798567,0.06,180.62,180.57,34.20977464]
[1755508798902,7.59977464,180.62,180.58,5.53763541]
[1755508799054,7.56977464,180.61,180.58,5.53763541]
[1755508799251,8.24977464,180.61,180.57,6.20796058]
[1755508799462,8.24977464,180.61,180.57,5.53796058]
[1755508800270,0.71,180.61,180.57,5.53796058]
[1755508800481,7.56977464,180.61,180.57,6.20796058]
[1755508800675,0.03,180.61,180.58,8.20977464]
[1755508800863,0.03,180.61,180.59,6.20719285]
[1755508801070,0.03,180.61,180.59,5.53719285]
[1755508801391,0.03,180.61,180.6,8.20977464]
[1755508801750,0.03,180.61,180.6,0.67]
[1755508802278,0.03,180.61,180.6,8.20977464]
[1755508802950,0.03,180.61,180.6,13.7468732]
[1755508803398,0.06,180.62,180.6,161.85308877]
[1755508803606,1e-08,180.62,180.61,89.47599021]
[1755508803756,1e-08,180.64,180.62,15.10621557]
[1755508803966,1e-08,180.64,180.63,7.53977464]
[1755508804169,1e-08,180.64,180.63,23.31599021]
[1755508804366,1e-08,180.66,180.65,26.0]
[1755508804592,1e-08,180.66,180.65,181.64599021]
[1755508804794,1e-08,180.68,180.67,48.64599021]
[1755508805102,1e-08,180.68,180.67,39.07472786]
[1755508805278,1e-08,180.68,180.67,54.85094343]
[1755508805600,1e-08,180.71,180.7,26.0]
[1755508805765,1e-08,180.71,180.7,88.82599021]
[1755508805965,1e-08,180.71,180.7,89.49599021]
[1755508806171,1e-08,180.73,180.71,15.10621557]
[1755508806378,18.66177317,180.75,180.74,41.10621557]
[1755508806566,3.45207947,180.89,180.78,26.0]
[1755508806778,2.88436937,180.83,180.79,7.53977464]
[1755508807108,2.88436937,180.83,180.82,31.53036168]
[1755508807400,0.68,180.89,180.82,39.74013632]
[1755508807590,0.68,180.89,180.85,7.53977464]
[1755508807772,0.68,180.88,180.82,46.02626589]
[1755508807972,0.68,180.88,180.83,7.53977464]
[1755508808277,0.68,180.88,180.84,11.68232327]
[1755508808486,0.68,180.88,180.83,0.67]
[1755508808686,0.68,180.88,180.82,31.53036168]
[1755508808894,12.91704674,180.92,180.87,17.21115613]
[1755508809199,1.23472347,180.92,180.87,17.21115613]
[1755508809499,0.68,180.91,180.86,5.5290928]
[1755508809712,0.55472347,180.92,180.87,12.35232327]
[1755508809883,0.55472347,180.93,180.89,11.68232327]
[1755508810199,0.68,180.91,180.85,5.52938896]
[1755508810399,0.68,180.91,180.86,11.68232327]
[1755508810563,1.23472347,180.91,180.86,12.35232327]
[1755508810763,0.68,180.9,180.85,17.21171223]
[1755508810963,12.91704674,180.89,180.83,31.52976848]
[1755508811201,11.68232327,180.87,180.82,5.5303543]
[1755508811387,11.68232327,180.84,180.79,5.53127938]
[1755508811595,0.68,180.83,180.79,5.53127938]
[1755508811774,12.36232327,180.85,180.8,11.68232327]
[1755508811974,0.68,180.85,180.79,5.53127938]
[1755508812175,0.68,180.84,180.79,17.21360265]
[1755508812377,12.36232327,180.83,180.79,5.53127938]
[1755508812578,1.23472347,180.89,180.82,11.68232327]
[1755508812780,0.58472347,180.91,180.83,0.67]
[1755508813010,0.03,180.91,180.87,11.68232327]
[1755508813314,11.68232327,180.88,180.82,11.68232327]
[1755508813614,12.36232327,180.88,180.83,11.68232327]
[1755508813775,0.55472347,180.9,180.84,0.67]
[1755508814181,12.23704674,180.9,180.84,0.67]
[1755508814380,11.68232327,180.87,180.81,6.20062557]
[1755508814574,0.68,180.89,180.79,11.68232327]
[1755508814575,1.23472347,180.86,180.79,11.68232327]
[1755508814779,11.68232327,180.84,180.79,11.68232327]
[1755508814995,12.36232327,180.84,180.8,5.53097345]
[1755508815485,0.68,180.83,180.79,17.21351972]
[1755508815982,11.68232327,180.84,180.79,17.21351972]
[1755508816313,0.55472347,180.86,180.82,11.68232327]
[1755508816502,0.55472347,180.89,180.85,11.68232327]
[1755508816879,1.27472347,180.89,180.84,11.68232327]
[1755508817081,0.55472347,180.9,180.86,11.68232327]
[1755508817318,11.71232327,180.91,180.87,12.35232327]
[1755508817319,0.03,180.91,180.87,12.35232327]
[1755508817795,0.03,180.91,180.85,6.19944429]
[1755508817999,12.23704674,180.9,180.85,5.52944429]
[1755508818180,1.27472347,180.9,180.85,17.88176756]
[1755508818379,1.27472347,180.9,180.85,6.19944429]
[1755508818580,1.27472347,180.9,180.86,11.68232327]
[1755508818806,12.26704674,180.91,180.86,11.68232327]
[1755508819008,12.26704674,180.91,180.86,17.21116119]
[1755508819221,12.98704674,180.91,180.86,17.21116119]
[1755508819507,12.98704674,180.91,180.86,5.52883792]
[1755508819508,1.27472347,180.9,180.86,5.52883792]
[1755508819726,0.72,180.89,180.84,17.21184284]
[1755508819916,12.40232327,180.88,180.84,5.52951957]
[1755508820112,0.72,180.88,180.84,5.52951957]
[1755508820321,1.27472347,180.9,180.86,11.68232327]
[1755508820490,0.55472347,180.9,180.86,11.68232327]
[1755508820823,1.27472347,180.9,180.85,11.68232327]
[1755508821028,12.95704674,180.9,180.85,11.68232327]
[1755508821317,11.68232327,180.86,180.79,11.68232327]
[1755508821486,1.27472347,180.85,180.79,5.53127938]
[1755508821692,11.68232327,180.81,180.77,5.53189135]
[1755508821901,11.68232327,180.82,180.77,5.53189135]
[1755508822088,0.72,180.81,180.77,5.53189135]
[1755508822287,12.40232327,180.81,180.77,5.53189135]
[1755508822513,40.91472347,180.85,180.78,12.35232327]
[1755508822765,0.55472347,180.86,180.81,11.68232327]
[1755508823022,53.31704674,180.89,180.83,11.68232327]
[1755508823193,15.29161084,180.88,180.83,5.53005585]
[1755508823388,11.68232327,180.86,180.82,5.53029454]
[1755508823606,12.23704674,180.85,180.81,5.53065381]
[1755508823788,0.55472347,180.85,180.81,5.53065381]
[1755508823987,12.95704674,180.87,180.82,12.35232327]
[1755508824300,12.95704674,180.86,180.81,17.21297708]
[1755508824505,0.55472347,180.86,180.81,17.21297708]
[1755508824803,54.15866049,180.92,180.85,11.68232327]
[1755508824804,0.55472347,180.89,180.85,11.68232327]
[1755508825000,0.03,180.91,180.81,19.35732268]
[1755508825001,4.19469062,180.91,180.87,11.68232327]
[1755508825203,0.03,180.91,180.83,34.46141105]
[1755508825415,0.03,180.91,180.88,0.67]
[1755508825895,0.03,180.91,180.89,12.35232327]
[1755508826111,0.06,180.9,180.89,0.67]
[1755508826307,0.06,180.9,180.89,12.35232327]
[1755508826912,0.06,180.9,180.89,0.67]
[1755508827099,0.06,180.9,180.89,17.88054484]
[1755508827803,0.06,180.9,180.89,17.21054484]
[1755508828025,0.06,180.9,180.89,17.88054484]
[1755508828436,0.03,180.91,180.89,17.88054484]
[1755508828614,1e-08,180.91,180.9,12.35232327]
[1755508829230,1e-08,180.91,180.9,17.88023924]
[1755508829467,1e-08,180.91,180.9,32.98645481]
[1755508830444,1e-08,180.91,180.9,17.88023924]
[1755508830834,1e-08,180.91,180.9,43.88023924]
[1755508831137,1e-08,180.91,180.9,43.21023924]
[1755508831760,1e-08,180.91,180.9,43.88023924]
[1755508832266,1e-08,180.91,180.86,14.49225111]
[1755508832455,1e-08,180.91,180.87,11.68232327]
[1755508833156,1e-08,180.91,180.88,11.68232327]
[1755508833468,1e-08,180.91,180.88,17.21057]
[1755508834287,1e-08,180.91,180.89,11.68232327]
[1755508834599,1e-08,180.91,180.89,12.35232327]
[1755508835258,1e-08,180.91,180.88,11.68232327]
[1755508835459,0.72,180.9,180.84,5.52975005]
[1755508835800,1e-08,180.91,180.88,11.68232327]
[1755508835967,1e-08,180.91,180.84,59.69412518]
[1755508835968,1e-08,180.91,180.89,12.35232327]
[1755508836169,1e-08,180.91,180.89,0.67]
[1755508836600,1e-08,180.91,180.89,12.35232327]
[1755508836889,1e-08,180.91,180.88,11.68232327]
[1755508837373,3.63568259,180.9,180.89,5.52822157]
[1755508837569,3.63559842,180.9,180.89,5.52822157]
[1755508837786,16.59264516,180.9,180.83,2.215514]
[1755508837985,11.68232327,180.88,180.82,12.35232327]
[1755508838188,3.63559842,180.87,180.83,11.68232327]
[1755508838370,3.63559842,180.86,180.84,11.68232327]
[1755508838575,12.95704674,180.9,180.85,0.67]
[1755508838888,3.63775954,180.89,180.85,0.67]
[1755508839074,3.63775954,180.88,180.85,0.67]
[1755508839264,3.63775954,180.87,180.85,0.67]
[1755508839463,3.63775954,180.86,180.85,6.19944429]
[1755508839992,4.35775954,180.86,180.8,138.53089208]
[1755508840203,3.63775954,180.85,180.8,5.53089208]
[1755508840362,16.04008281,180.84,180.8,5.53089208]
[1755508840689,3.63775954,180.83,180.8,31.53089208]
[1755508840992,3.63775954,180.82,180.8,32.20089208]
[1755508841293,3.64336072,180.81,180.8,32.20089208]
[1755508841692,3.64336072,180.81,180.8,31.53089208]
[1755508841868,3.64336072,180.81,180.79,11.68232327]
[1755508841869,15.32568399,180.81,180.78,0.03]
[1755508842058,3.64336072,180.8,180.78,17.24385256]
[1755508842264,3.64336072,180.79,180.78,17.24385256]
[1755508842461,3.64336072,180.79,180.78,0.03]
[1755508843072,3.64336072,180.79,180.78,11.71232327]
[1755508843588,3.64336072,180.79,180.78,17.24390862]
[1755508843968,3.64336072,180.79,180.78,5.56158535]
[1755508844166,3.64336072,180.79,180.78,0.03]
[1755508844467,20.11465104,180.79,180.77,0.03]
[1755508844669,20.66937451,180.78,180.77,0.03]
[1755508844891,3.64336072,180.78,180.77,0.03]
[1755508845096,12.28300091,180.78,180.77,0.03]
[1755508845267,7.71220259,180.78,180.77,5.56189135]
[1755508845469,3.64336072,180.78,180.77,17.91421462]
[1755508846500,3.64336072,180.78,180.77,6.23189135]
[1755508846791,3.64336072,180.78,180.77,17.24421462]
[1755508847094,3.64336072,180.78,180.77,5.56189135]
[1755508847397,3.64336072,180.78,180.77,17.95421462]
[1755508847815,3.64336072,180.78,180.77,17.24421462]
[1755508848013,3.64336072,180.78,180.77,0.03]
[1755508848475,20.12580973,180.78,180.77,0.03]
[1755508848873,24.71463576,180.78,180.77,0.03]
[1755508849113,24.71477869,180.78,180.77,0.03]
[1755508849325,25.65739508,180.78,180.77,0.03]
[1755508849707,21.57726934,180.78,180.77,0.03]
[1755508850025,21.57726934,180.78,180.76,0.03]
[1755508850026,31.81178223,180.78,180.76,0.03]
[1755508850202,26.11492035,180.77,180.76,0.03]
[1755508850403,20.68316231,180.77,180.76,0.03]
[1755508851602,20.68146194,180.77,180.76,0.03]
[1755508852194,25.27140992,180.77,180.76,0.03]
[1755508853306,16.60040746,180.77,180.76,0.03]
[1755508854014,15.88040746,180.77,180.76,0.03]
[1755508854215,15.32568399,180.77,180.76,0.03]
[1755508854801,16.06974039,180.77,180.76,0.03]
[1755508855405,15.34974039,180.77,180.76,0.03]
[1755508856092,16.06974039,180.77,180.76,0.03]
[1755508856395,36.70784731,180.77,180.76,0.03]
[1755508857102,45.36441571,180.77,180.76,0.03]
[1755508858118,40.78014431,180.77,180.76,0.03]
[1755508858304,36.70784731,180.77,180.76,0.03]
[1755508858503,77.02784731,180.77,180.76,0.03]
[1755508858923,77.58257078,180.77,180.76,0.03]
[1755508860344,15.10621557,180.73,180.72,0.03]
[1755508860500,71.29067943,180.73,180.72,0.03]
[1755508860701,72.01067943,180.73,180.72,0.03]
[1755508861303,65.14147185,180.73,180.72,0.03]
[1755508861506,65.14147185,180.73,180.72,0.74]
[1755508861507,40.83472347,180.73,180.72,0.74]
[1755508861710,52.51704674,180.73,180.72,0.03]
[1755508862022,73.876378,180.73,180.72,0.03]
[1755508862232,12.23704674,180.73,180.72,0.03]
[1755508862434,40.26,180.73,180.72,0.03]
[1755508862799,67.76853884,180.73,180.72,0.03]
[1755508863330,73.30165453,180.73,180.72,0.03]
[1755508864009,11.68232327,180.75,180.72,0.74]
[1755508864236,40.32,180.74,180.72,0.74]
[1755508864539,52.00232327,180.74,180.72,0.74]
[1755508865148,52.00232327,180.74,180.73,0.71]
[1755508866018,52.00232327,180.74,180.72,0.03]
[1755508866248,12.23704674,180.73,180.72,0.03]
[1755508866830,28.06326231,180.73,180.72,0.03]
[1755508867342,40.81472347,180.73,180.72,0.03]
[1755508867645,40.26,180.73,180.72,0.74]
[1755508868222,0.55472347,180.75,180.72,0.74]
[1755508868418,40.81472347,180.75,180.73,0.71]
[1755508868819,40.26,180.75,180.74,0.71]
[1755508869454,0.55472347,180.79,180.74,6.24280956]
[1755508869755,40.26,180.78,180.75,0.71]
[1755508870139,40.26,180.78,180.74,5.53280956]
[1755508870140,40.26,180.78,180.76,0.71]
[1755508870721,40.26,180.78,180.77,0.71]
[1755508870924,11.68232327,180.8,180.77,0.71]
[1755508871141,40.26,180.79,180.74,5.53280956]
[1755508871349,12.23704674,180.78,180.74,6.24280956]
[1755508871546,11.68232327,180.78,180.74,5.53280956]
[1755508871763,11.68232327,180.78,180.75,0.71]
[1755508871941,51.94232327,180.79,180.75,0.71]
[1755508872141,51.94232327,180.79,180.74,5.53280956]
[1755508872355,51.94232327,180.79,180.76,0.71]
[1755508872743,51.94232327,180.79,180.77,0.71]
[1755508872944,40.26,180.79,180.77,0.71]
[1755508873467,52.49704674,180.79,180.74,5.53280956]
[1755508873640,40.26,180.79,180.75,0.71]
[1755508873845,51.94232327,180.79,180.75,0.71]
[1755508874243,11.68232327,180.79,180.75,0.71]
[1755508874553,40.22,180.78,180.75,0.71]
[1755508874765,11.68232327,180.79,180.75,6.24235569]
[1755508874967,40.22,180.78,180.76,12.39232327]
[1755508875270,51.90232327,180.79,180.75,5.53235569]
[1755508875450,11.68232327,180.78,180.75,5.53235569]
[1755508875647,51.90232327,180.79,180.75,5.53235569]
[1755508875869,40.22,180.79,180.76,0.71]
[1755508876763,40.22,180.79,180.77,0.69]
[1755508876969,40.22,180.79,180.77,6.22181786]
[1755508877948,12.29704674,180.82,180.78,0.69]
[1755508878147,40.24,180.81,180.78,0.69]
[1755508878549,51.92232327,180.81,180.77,5.53181786]
[1755508879785,51.92232327,180.81,180.77,6.22181786]
[1755508880304,3.67075231,180.8,180.77,6.22181786]
[1755508880662,3.67075231,180.8,180.77,6.2218586]
[1755508881182,3.67075231,180.79,180.77,0.69]
[1755508881372,3.67075231,180.8,180.76,5.53208577]
[1755508881573,3.67075231,180.79,180.76,6.22208577]
[1755508881774,3.67075231,180.8,180.76,5.53208577]
[1755508881961,3.67075231,180.79,180.77,0.69]
[1755508882157,46.32545184,180.81,180.75,12.37232327]
[1755508882374,3.67674346,180.8,180.75,6.2224204]
[1755508882581,4.23146693,180.79,180.75,6.2224204]
[1755508882797,11.68232327,180.77,180.72,0.72]
[1755508882979,1.26472347,180.77,180.72,0.72]
[1755508883187,51.90232327,180.78,180.73,0.69]
[1755508883378,3.67854294,180.77,180.72,17.24553345]
[1755508883701,40.22,180.78,180.74,0.69]
[1755508883869,3.67865997,180.77,180.76,11.68232327]
[1755508884068,3.67875615,180.77,180.76,12.37232327]
[1755508884293,3.67875615,180.77,180.76,6.22219738]
[1755508884483,3.67875615,180.77,180.76,17.90452065]
[1755508885072,3.67875615,180.77,180.74,17.90513283]
[1755508885404,3.67875615,180.76,180.74,5.53280956]
[1755508885560,11.68232327,180.79,180.75,0.69]
[1755508885767,3.68299516,180.78,180.75,0.69]
[1755508885967,3.68299516,180.77,180.75,0.69]
[1755508886164,11.68232327,180.79,180.75,0.69]
[1755508886363,17.21462462,180.76,180.72,0.03]
[1755508886582,11.68232327,180.73,180.72,0.03]
[1755508886793,34.56647027,180.73,180.72,0.03]
[1755508886996,35.27647027,180.73,180.72,0.03]
[1755508887169,35.27647027,180.73,180.68,0.03]
[1755508887170,15.10621557,180.72,180.68,0.03]
[1755508887372,75.40119374,180.71,180.68,0.03]
[1755508887595,80.68330153,180.71,180.68,0.03]
[1755508887868,41.10621557,180.69,180.68,0.03]
[1755508888067,60.56647027,180.69,180.68,0.03]
[1755508888298,66.43103755,180.69,180.68,0.03]
[1755508888472,71.96537813,180.69,180.68,0.03]
[1755508889786,67.36553432,180.69,180.68,0.03]
[1755508889993,15.10621557,180.68,180.66,0.03]
[1755508890198,75.44119374,180.67,180.66,0.03]
[1755508890408,76.15119374,180.67,180.66,0.03]
[1755508891102,80.74924192,180.67,180.66,0.03]
[1755508891309,76.15119374,180.67,180.66,0.03]
[1755508891799,72.89243333,180.67,180.66,0.03]
[1755508892002,89.17280478,180.67,180.66,0.03]
[1755508892230,41.10621557,180.63,180.61,0.2]
[1755508892411,41.10621557,180.63,180.57,0.75]
[1755508892412,71.34770056,180.62,180.57,0.06]
[1755508892580,26.78853884,180.58,180.57,0.06]
[1755508892915,74.91274035,180.58,180.57,0.06]
[1755508893120,80.775512,180.58,180.57,0.06]
[1755508893275,76.17746382,180.58,180.57,0.06]
[1755508893693,81.71517563,180.58,180.57,0.06]
[1755508893902,11.68232327,180.56,180.55,0.06]
[1755508894233,82.28148499,180.56,180.55,0.06]
[1755508894408,82.99148499,180.56,180.55,0.06]
[1755508895024,82.28148499,180.56,180.55,0.06]
[1755508896031,82.30148499,180.56,180.55,0.06]
[1755508896205,15.92148499,180.56,180.55,0.06]
[1755508896406,52.63704674,180.56,180.55,0.06]
[1755508896603,52.63704674,180.56,180.55,0.75]
[1755508896814,40.38,180.56,180.55,0.75]
[1755508897024,52.06232327,180.56,180.55,0.75]
[1755508898018,0.55472347,180.59,180.55,6.28863195]
[1755508898211,0.55472347,180.59,180.56,0.69]
[1755508898212,40.38,180.58,180.56,0.69]
[1755508898423,52.06232327,180.58,180.56,0.69]
[1755508899009,40.38,180.58,180.57,0.69]
[1755508899210,40.36,180.58,180.57,0.69]
[1755508899420,40.36,180.58,180.55,6.28853117]
[1755508899711,40.36,180.58,180.56,0.69]
[1755508899921,40.36,180.58,180.55,5.59853117]
[1755508900125,40.36,180.58,180.57,0.69]
[1755508900332,0.55472347,180.63,180.57,12.37232327]
[1755508900611,0.55472347,180.63,180.55,5.59853117]
[1755508900612,40.4,180.63,180.59,11.68232327]